bitfinex-derivatives/quotes_ETHF0:USTF0_20210111
["timestamp","ask_amount","ask_price","bid_price","bid_amount"]
[1610345663760,5.89939,1064.6,1062.3,1.8996]
[1610345664061,1.8898,1064.6,1064.2,4.00959]
[1610345664261,1.8898,1064.6,1064.2,5.96039]
[1610345664462,1.8898,1064.6,1064.2,1.9508]
[1610345665262,1.8898,1064.6,1064.2,0.5072]
[1610345665462,1.8898,1064.6,1062.1,2.3004]
[1610345665662,1.8898,1064.6,1061.4,1.73811256]
[1610345666064,1.8898,1064.6,1061.4,1.8947]
[1610345666462,1.8898,1064.6,1060.8,1.75171305]
[1610345666861,10.8898,1064.6,1060.8,1.75171305]
[1610345667063,10.8898,1064.6,1060.7,1.75212873]
[1610345667263,64.1814,1064.5,1060.7,1.75212873]
[1610345667464,64.1814,1064.5,1060.6,66.2551]
[1610345667465,66.0397,1064.5,1060.6,66.2551]
[1610345667664,75.0397,1064.5,1060.6,66.2551]
[1610345668066,4.00959,1061.9,1061.8,4.00959]
[1610345668264,5.67071058,1064.4,1061.8,4.00959]
[1610345668465,5.67071058,1064.4,1061.8,6.11799]
[1610345668666,14.67071058,1064.4,1061.8,6.11799]
[1610345668866,14.67071058,1064.4,1061.8,4.13159]
[1610345669267,5.67071058,1064.4,1061.8,4.13159]
[1610345669468,5.67071058,1064.4,1061.8,1.96879]
[1610345669668,75.0397,1064.5,1061.8,1.96879]
[1610345669867,9.0,1064.4,1061.8,9e-05]
[1610345670067,4.00959,1062.0,1061.8,9e-05]
[1610345670267,1.8956,1062.5,1061.8,9e-05]
[1610345671468,1.908,1063.2,1061.8,9e-05]
[1610345671672,1.8852,1063.9,1061.8,9e-05]
[1610345671868,1.9046,1064.2,1061.8,9e-05]
[1610345672068,4.00959,1064.9,1064.1,4.00959]
[1610345672269,64.1814,1064.5,1064.1,6.17559]
[1610345672669,59.0763,1064.5,1064.1,6.17559]
[1610345672870,1.8986,1066.0,1064.1,6.17559]
[1610345673671,1.8986,1066.0,1064.1,0.83549]
[1610345674072,4.00959,1064.2,1064.1,0.83549]
[1610345674271,4.00959,1064.2,1063.6,4.00959]
[1610345674471,6.17749,1064.2,1061.8,1.74984266]
[1610345674672,6.17749,1064.2,1061.8,9e-05]
[1610345674873,6.17749,1064.2,1061.6,1.75027139]
[1610345675072,6.17749,1064.2,1061.4,1.75056669]
[1610345675273,6.17749,1064.2,1061.1,1.75094687]
[1610345675874,6.17749,1064.2,1061.5,3.10796936]
[1610345676074,4.00959,1063.4,1061.5,3.10796936]
[1610345677274,4.00959,1063.4,1061.6,1.45762109]
[1610345678075,1.8637,1063.9,1062.6,4.00959]
[1610345678275,1.5732,1064.0,1061.6,1.45762109]
[1610345678676,1.5732,1064.0,1061.5,1.6508]
[1610345678876,1.8993,1064.2,1061.5,1.6508]
[1610345679075,1.8806,1064.4,1061.5,10.6508]
[1610345679275,1.8658,1064.8,1061.5,10.6508]
[1610345680075,4.00959,1064.7,1063.9,4.00959]
[1610345681177,2.2629,1065.2,1063.9,4.00959]
[1610345681384,2.2629,1065.2,1063.9,5.92329]
[1610345682177,4.00959,1064.6,1064.5,4.00959]
[1610345682377,4.00959,1064.6,1062.0,10.8771]
[1610345682578,4.00959,1064.6,1062.0,9.0]
[1610345682777,4.00959,1064.6,1061.5,1.6508]
[1610345682978,4.00959,1064.6,1061.2,1.8911]
[1610345683177,4.00959,1064.6,1062.1,1.45676897]
[1610345683377,4.00959,1064.6,1062.1,3.02316897]
[1610345684177,1.8679,1064.8,1062.1,3.02316897]
[1610345684377,2.1832,1064.9,1062.1,3.02316897]
[1610345684577,2.1832,1064.9,1062.2,1.45748745]
[1610345685479,11.1832,1064.9,1062.2,1.45748745]
[1610345685879,0.93931,1064.6,1062.1,0.63568745]
[1610345686079,4.00959,1062.2,1062.1,0.63568745]
[1610345686280,4.00959,1062.2,1062.1,0.45568745]
[1610345687280,5.90219,1062.2,1062.1,0.45568745]
[1610345687479,5.90219,1062.2,1062.1,8.745e-05]
[1610345688380,5.90219,1062.2,1059.5,1.07938097]
[1610345688580,5.90219,1062.2,1059.6,1.45898718]
[1610345688781,5.90219,1062.2,1059.6,3.93428718]
[1610345689587,1.8661,1062.9,1059.6,3.93428718]
[1610345689588,10.8661,1062.9,1059.6,3.93428718]
[1610345689787,9.0,1062.9,1059.6,3.93428718]
[1610345689987,1.8614,1063.2,1059.7,1.45928748]
[1610345690187,1.8759,1064.5,1060.4,4.00959]
[1610345690388,31.8759,1064.5,1060.4,6.10229]
[1610345690587,9.0,1063.4,1060.4,6.10229]
[1610345690788,9.0,1063.9,1060.4,6.10229]
[1610345690987,9.0,1063.4,1060.4,6.10229]
[1610345691588,6.30074212,1063.3,1060.4,6.10229]
[1610345691987,15.30074212,1063.3,1060.4,6.10229]
[1610345692188,6.30074212,1063.3,1060.4,2.0927]
[1610345692789,9.0,1063.8,1060.4,2.0927]
[1610345693190,9.0,1063.8,1060.4,3.9587]
[1610345694191,4.00959,1061.1,1060.8,4.00959]
[1610345694390,1.8864,1062.5,1060.8,4.00959]
[1610345694590,1.8864,1062.5,1060.8,6.26349]
[1610345695390,1.8864,1062.5,1060.8,8.14229]
[1610345695790,67.0573,1062.8,1060.8,8.14229]
[1610345695990,67.0573,1062.8,1060.8,47.14229]
[1610345696191,4.00959,1062.7,1062.6,4.00959]
[1610345696391,67.0573,1062.8,1062.6,3.87079]
[1610345696993,67.0573,1062.8,1060.8,4.1327]
[1610345697192,67.0573,1062.8,1062.6,2.0348]
[1610345697592,67.0573,1062.8,1062.6,0.6584]
[1610345697994,67.0573,1062.8,1061.5,1.8997]
[1610345698192,67.0573,1062.8,1062.6,1.3032]
[1610345698393,67.0573,1062.8,1061.2,1.8608]
[1610345698592,67.0573,1062.8,1062.5,2.049]
[1610345698993,67.0573,1062.8,1062.5,1.8962]
[1610345699193,67.0573,1062.8,1061.5,0.7569]
[1610345699395,67.0573,1062.8,1059.5,1.07938097]
[1610345699592,76.0573,1062.8,1059.5,1.07938097]
[1610345699793,67.0573,1062.8,1060.4,3.3459]
[1610345701795,67.0573,1062.8,1059.5,1.07938097]
[1610345702198,67.0573,1062.8,1060.3,1.57989]
[1610345702394,69.0084,1062.7,1060.3,1.8515]
[1610345702795,75.31247777,1062.7,1060.3,1.8515]
[1610345702996,75.31247777,1062.7,1060.3,0.4712]
[1610345703197,75.31247777,1062.7,1060.3,0.1849]
[1610345703397,75.31247777,1062.7,1059.5,1.07938097]
[1610345704198,75.31247777,1062.7,1060.0,4.00959]
[1610345704399,6.15615427,1062.6,1060.0,6.29219]
[1610345706200,4.00959,1061.7,1061.2,4.00959]
[1610345706401,1.9089,1062.2,1061.2,4.00959]
[1610345706600,1.9074,1062.5,1061.2,2.3513]
[1610345707502,6.15385099,1062.4,1060.0,2.2826]
[1610345708106,4.00959,1060.4,1060.2,4.00959]
[1610345708307,6.15385099,1062.4,1060.0,2.2826]
[1610345708308,1.9109,1061.2,1060.0,2.2826]
[1610345708506,1.8628,1061.9,1059.5,1.07938097]
[1610345708706,1.8579,1062.2,1060.0,1.5002]
[1610345708906,1.9074,1062.5,1060.0,1.5002]
[1610345709508,9.0,1062.2,1060.0,1.5002]
[1610345710108,9.0,1062.2,1060.3,4.00959]
[1610345710308,6.15625672,1062.1,1060.3,6.39999]
[1610345710508,8.05875672,1062.1,1060.3,6.39999]
[1610345710710,8.05875672,1062.1,1060.3,2.3904]
[1610345711110,17.05875672,1062.1,1060.3,2.0412]
[1610345711510,17.05875672,1062.1,1060.3,0.4214]
[1610345711711,6.15772646,1062.0,1060.3,0.4214]
[1610345712111,4.00959,1060.4,1060.0,0.0385]
[1610345712314,1.8929,1061.2,1058.8,4.00959]
[1610345712512,0.94225,1061.3,1058.8,2.3483]
[1610345712712,9.0,1061.2,1058.8,2.3483]
[1610345713112,0.94225,1061.3,1058.8,2.3483]
[1610345713714,67.75615,1061.5,1058.8,2.3483]
[1610345713913,58.75615,1061.5,1058.8,2.3483]
[1610345714114,4.00959,1059.8,1059.7,4.00959]
[1610345714314,1.8955,1060.9,1059.7,4.00959]
[1610345714515,1.872,1061.2,1059.7,6.00019]
[1610345714713,58.75615,1061.5,1059.7,6.00019]
[1610345715313,58.75615,1061.5,1059.7,1.9906]
[1610345716115,67.75615,1061.5,1059.7,1.9906]
[1610345716314,4.00959,1059.8,1058.8,2.3483]
[1610345716514,4.00959,1059.8,1059.7,1.971]
[1610345716715,1.8969,1060.9,1059.7,1.971]
[1610345716915,9.0,1060.9,1059.7,1.971]
[1610345717918,1.9048,1061.2,1058.8,0.6645]
[1610345718119,55.6226,1059.8,1059.7,1.4983]
[1610345718318,153.1892,1061.3,1059.7,0.8338]
[1610345718319,1.8708,1060.2,1059.7,0.8338]
[1610345718518,1.8589,1060.5,1059.7,0.8338]
[1610345718718,59.7154,1059.8,1059.7,2.2931]
[1610345718919,59.2933,1059.8,1059.7,1.1135]
[1610345719120,59.2933,1059.8,1057.0,66.8303]
[1610345719320,55.5289,1059.8,1057.0,66.8303]
[1610345719520,55.5289,1059.8,1056.4,2.34279674]
[1610345719521,1.8071,1059.8,1056.4,2.34279674]
[1610345719721,68.9002,1059.1,1055.8,2.34343696]
[1610345719922,68.9002,1059.1,1057.1,1.46377509]
[1610345720322,4.00959,1057.7,1057.2,4.00959]
[1610345720923,4.00959,1057.7,1057.2,3.31829]
[1610345721524,1.896,1057.7,1057.2,3.31829]
[1610345722325,1.9162,1058.9,1057.6,5.89769]
[1610345722524,74.80609,1059.1,1057.6,5.89769]
[1610345722726,5.90589,1059.1,1057.6,7.80589]
[1610345722924,1.8963,1059.1,1057.6,7.80589]
[1610345723124,1.8963,1059.1,1057.6,16.80589]
[1610345723325,1.8963,1059.1,1057.6,14.89769]
[1610345723524,1.8908,1059.5,1057.6,14.89769]
[1610345724325,5.86849,1060.5,1059.4,4.00959]
[1610345724826,5.86849,1060.5,1059.2,1.8564]
[1610345725026,5.86849,1060.5,1058.1,1.8882]
[1610345725229,5.86849,1060.5,1057.6,1.8881]
[1610345726228,4.00959,1058.6,1058.3,4.00959]
[1610345726428,1.8901,1059.2,1058.3,4.00959]
[1610345726628,1.8901,1059.2,1058.3,6.08169]
[1610345727830,1.8901,1059.2,1058.3,2.0721]
[1610345728030,1.8901,1059.2,1057.6,1.8881]
[1610345728230,4.00959,1058.3,1057.7,4.00959]
[1610345728430,4.00959,1058.3,1057.4,55.0879]
[1610345729630,4.00959,1058.3,1057.4,43.4958]
[1610345729831,4.00959,1058.3,1056.9,1.08969353]
[1610345730233,4.00959,1058.1,1057.3,4.00959]
[1610345730434,1.8866,1058.5,1057.3,4.00959]
[1610345730631,1.9101,1058.9,1057.3,5.98869]
[1610345730832,53.5794,1059.1,1057.3,5.98869]
[1610345731432,53.5794,1059.1,1057.3,14.98869]
[1610345731633,65.6778,1060.5,1057.3,14.98869]
[1610345731832,65.6778,1060.5,1057.3,44.98869]
[1610345732232,65.6778,1060.5,1060.3,4.00959]
[1610345732632,1.8808,1060.9,1060.3,4.00959]
[1610345732833,5.2906,1062.4,1060.3,4.00959]
[1610345733034,78.8328,1062.5,1060.3,13.00959]
[1610345733234,1.8832,1062.5,1060.3,43.00959]
[1610345733434,1.8565,1063.7,1060.3,103.82729]
[1610345733638,0.3945,1063.7,1060.3,103.82729]
[1610345733837,5.3081,1064.0,1060.3,103.82729]
[1610345734041,6.15277389,1062.4,1060.3,103.82729]
[1610345734238,6.15277389,1062.4,1062.3,4.00959]
[1610345734641,4.00959,1063.5,1062.3,4.00959]
[1610345735235,1.891,1063.9,1062.3,4.00959]
[1610345735436,3.62595203,1063.4,1062.3,5.89039]
[1610345735637,57.1356,1064.8,1062.3,14.89039]
[1610345735837,2.0051,1064.5,1062.3,14.89039]
[1610345736036,10.185,1066.7,1062.3,14.89039]
[1610345736236,4.00959,1064.8,1064.6,4.00959]
[1610345736438,1.6872,1065.2,1064.6,4.00959]
[1610345737040,1.0021,1065.2,1064.6,4.00959]
[1610345737240,1.0021,1065.2,1064.6,13.00959]
[1610345737439,1.8988,1066.2,1064.6,13.00959]
[1610345737646,1.8563,1066.5,1064.6,14.87519]
[1610345737846,2.20244356,1066.6,1064.6,14.87519]
[1610345738047,24.39605229,1069.7,1064.7,30.0]
[1610345738249,4.00959,1067.1,1066.6,4.00959]
[1610345738448,24.40132845,1069.8,1066.6,4.00959]
[1610345738948,24.43994555,1070.1,1066.6,4.00959]
[1610345739349,24.49943481,1070.5,1066.6,4.00959]
[1610345739949,26.38147976,1070.8,1066.6,4.00959]
[1610345740349,4.00959,1068.2,1066.1,1.885]
[1610345740549,5.77419,1068.2,1065.9,30.0]
[1610345740751,3.6393,1068.2,1066.6,75.5007]
[1610345740950,3.6393,1068.2,1066.6,1.8586]
[1610345741549,3.6393,1068.2,1066.4,1.6368]
[1610345741950,1.7646,1068.2,1066.4,1.6368]
[1610345742350,4.00959,1067.9,1067.6,4.00959]
[1610345742550,2.2165,1067.9,1067.6,4.00959]
[1610345743949,2.2165,1067.9,1066.1,63.4399]
[1610345744350,1.9702,1067.9,1067.8,4.00959]
[1610345744751,1.7646,1068.2,1067.8,4.00959]
[1610345745452,3.6565,1068.2,1067.8,4.00959]
[1610345745651,1.7646,1068.2,1067.8,4.00959]
[1610345745853,1.864,1069.5,1067.8,4.00959]
[1610345746452,1.864,1069.5,1067.5,1.8777]
[1610345746653,2.2574,1069.5,1067.2,1.8801]
[1610345747455,2.0509,1069.5,1067.2,1.8801]
[1610345747654,1.6303,1069.5,1067.2,1.8801]
[1610345747854,3.4915,1069.5,1067.2,1.8801]
[1610345748254,58.2242,1069.6,1067.2,1.8801]
[1610345748455,24.58976481,1073.2,1067.2,1.8801]
[1610345748456,24.58976481,1073.2,1069.4,4.00959]
[1610345748654,24.59795826,1073.3,1069.4,4.00959]
[1610345748854,24.64152517,1073.6,1069.4,4.00959]
[1610345749554,0.9314,1073.7,1069.4,4.00959]
[1610345750155,2.7927,1070.4,1069.4,4.00959]
[1610345750355,4.00959,1071.6,1070.3,4.00959]
[1610345750555,5.85479,1071.6,1070.3,4.00959]
[1610345751455,5.85479,1071.6,1070.3,5.88969]
[1610345751655,5.85479,1071.6,1070.3,4.00959]
[1610345751858,1.8452,1071.6,1070.3,4.00959]
[1610345752456,4.00959,1071.1,1069.5,53.1978]
[1610345752656,7.74309,1071.1,1069.5,53.1978]
[1610345753057,7.74309,1071.1,1069.1,66.6704]
[1610345753458,5.97077408,1071.0,1069.1,66.6704]
[1610345754457,4.00959,1069.9,1069.4,4.00959]
[1610345754659,5.62719,1069.9,1069.1,66.6704]
[1610345755459,1.6176,1069.9,1069.1,66.6704]
[1610345755659,3.4809,1069.9,1069.1,66.6704]
[1610345756460,3.4809,1069.9,1069.8,4.00959]
[1610345756660,3.4809,1069.9,1069.1,66.6704]
[1610345758363,3.4809,1069.9,1069.8,4.00959]
[1610345759564,1.8752,1070.8,1069.8,4.00959]
[1610345760363,1.8752,1070.8,1070.7,4.00959]
[1610345760563,1.8441,1071.1,1070.7,4.00959]
[1610345760763,4.00959,1072.0,1070.7,4.00959]
[1610345761164,33.05305838,1081.8,1070.7,4.00959]
[1610345761363,29.64805838,1081.8,1070.7,4.00959]
[1610345761563,6.3064,1079.0,1070.7,4.00959]
[1610345761963,5.95772049,1072.1,1070.7,4.00959]
[1610345762163,7.54542049,1072.1,1070.7,4.00959]
[1610345762363,7.39732049,1072.1,1072.0,4.00959]
[1610345762563,5.89772049,1072.1,1072.0,4.00959]
[1610345762963,5.89772049,1072.1,1072.0,3.26739]
[1610345763163,3.4539,1072.1,1070.1,1.5672]
[1610345763962,3.4539,1072.1,1070.0,1.8837]
[1610345764163,2.9925,1072.1,1070.0,1.8837]
[1610345764363,2.9925,1072.1,1072.0,4.00959]
[1610345764763,2.9925,1072.1,1070.5,1.8779]
[1610345766368,2.9925,1072.1,1072.0,4.00959]
[1610345766965,1.1263,1072.1,1072.0,4.00959]
[1610345767166,1.8626,1072.9,1072.0,4.00959]
[1610345767365,4.79899593,1072.1,1072.0,4.00959]
[1610345767965,1.8796,1074.7,1072.0,4.00959]
[1610345768365,1.8796,1074.7,1074.5,4.00959]
[1610345768565,1.8796,1074.7,1071.2,1.8804]
[1610345768765,2.81030753,1074.6,1071.2,1.8804]
[1610345769565,7.53e-06,1074.7,1071.2,10.8804]
[1610345769766,7.53e-06,1074.7,1071.2,13.0271]
[1610345770365,7.53e-06,1074.7,1074.6,4.00959]
[1610345770565,7.53e-06,1074.7,1071.2,13.0271]
[1610345770566,7.53e-06,1074.7,1072.8,1.8602]
[1610345770768,7.53e-06,1074.7,1072.5,1.839]
[1610345771166,7.53e-06,1074.7,1072.2,1.8658]
[1610345772468,7.53e-06,1074.7,1074.5,4.00959]
[1610345773470,1.858,1076.4,1074.5,4.00959]
[1610345773671,4.85293,1080.4,1074.5,4.00959]
[1610345774472,4.00959,1076.2,1075.9,4.00959]
[1610345774672,5.58869,1076.2,1074.3,1.8449]
[1610345774872,5.58869,1076.2,1073.8,1.8533]
[1610345775071,5.58869,1076.2,1073.6,1.837]
[1610345775472,1.5791,1076.2,1073.6,1.837]
[1610345775672,3.4118,1076.2,1073.6,1.837]
[1610345776074,1.5791,1076.2,1073.6,1.837]
[1610345776474,1.5791,1076.2,1075.8,4.00959]
[1610345776874,1.5791,1076.2,1074.2,1.8577]
[1610345777076,3.451,1076.2,1074.2,1.8577]
[1610345777476,1.5791,1076.2,1074.2,1.8577]
[1610345778075,2.0908,1076.2,1074.2,1.8577]
[1610345778476,2.0908,1076.2,1076.1,4.00959]
[1610345778876,2.0908,1076.2,1074.8,1.8348]
[1610345779077,2.0908,1076.2,1075.8,58.9651]
[1610345780079,2.0908,1076.2,1075.8,29.9608]
[1610345780480,2.0908,1076.2,1076.1,4.00959]
[1610345780680,5.88679,1077.3,1076.1,4.00959]
[1610345780880,4.00959,1077.3,1076.1,4.00959]
[1610345781481,1.8641,1077.8,1076.1,4.00959]
[1610345781682,1.8641,1077.8,1076.1,5.85709]
[1610345782283,52.6064,1079.2,1076.1,5.85709]
[1610345782482,52.6064,1079.2,1077.8,4.00959]
[1610345782882,52.6064,1079.2,1076.1,1.8475]
[1610345783081,4.1341,1078.5,1076.1,1.8475]
[1610345783282,2.26,1078.5,1076.1,1.8475]
[1610345783482,4.1377,1078.5,1076.1,1.8475]
[1610345785083,4.1377,1078.5,1076.2,67.3794]
[1610345785283,4.1377,1078.5,1076.2,69.22]
[1610345785484,2.26,1078.5,1076.2,69.22]
[1610345786486,4.00959,1078.4,1078.2,4.00959]
[1610345788183,2.26,1078.5,1078.2,4.00959]
[1610345788384,1.8409,1079.8,1078.2,4.00959]
[1610345788583,1.8409,1079.8,1078.6,4.00959]
[1610345788885,1.8409,1079.8,1077.5,67.1182]
[1610345789286,3.9585,1079.8,1077.5,67.1182]
[1610345790487,4.00959,1077.6,1077.2,4.00959]
[1610345790686,6.44409,1077.6,1074.0,2.30215857]
[1610345791086,6.44409,1077.6,1073.8,2.30308137]
[1610345791286,6.44409,1077.6,1073.7,2.30370571]
[1610345791889,6.44409,1077.6,1073.6,2.30388268]
[1610345792290,6.44409,1077.6,1073.4,2.30445994]
[1610345792489,4.00959,1076.6,1075.7,4.00959]
[1610345792888,6.48139,1076.6,1075.7,4.00959]
[1610345793590,6.48139,1076.6,1073.7,1.43814816]
[1610345793790,6.48139,1076.6,1072.8,2.30510312]
[1610345794291,6.48139,1076.6,1072.7,2.30624533]
[1610345794491,4.00959,1075.2,1074.7,4.00959]
[1610345794690,6.07509,1075.2,1074.7,4.00959]
[1610345795190,6.07509,1075.2,1074.7,3.55619]
[1610345795992,6.07509,1075.2,1073.4,55.6636]
[1610345796391,2.0655,1075.2,1073.4,55.6636]
[1610345796590,2.0655,1075.2,1074.9,4.00959]
[1610345797792,2.0655,1075.2,1073.4,55.6636]
[1610345798593,4.00959,1074.9,1074.3,4.00959]
[1610345798792,2.1805,1074.9,1074.3,4.00959]
[1610345800194,2.0655,1075.2,1074.3,4.00959]
[1610345800394,53.4246,1076.3,1074.3,4.00959]
[1610345800595,4.00959,1075.9,1075.3,4.00959]
[1610345800794,6.37459,1075.9,1075.3,4.00959]
[1610345801497,2.365,1075.9,1075.3,4.00959]
[1610345802600,2.365,1075.9,1075.8,4.00959]
[1610345803101,53.4246,1076.3,1075.8,4.00959]
[1610345804001,2.4718,1076.6,1075.8,75.00089]
[1610345804401,217.5302,1079.3,1075.8,75.00089]
[1610345804602,4.00959,1078.4,1078.3,4.00959]
[1610345804803,4.00959,1078.4,1075.9,1.5069]
[1610345805002,2.3944,1078.4,1075.9,1.5069]
[1610345805203,2.3944,1078.4,1077.6,57.2161]
[1610345806502,4.00959,1078.3,1077.6,57.2161]
[1610345806703,4.00959,1078.3,1077.5,4.00959]
[1610345806704,4.00959,1078.3,1076.7,1.587]
[1610345808002,4.00959,1078.3,1076.2,2.4704]
[1610345808603,4.00959,1077.3,1076.4,4.00959]
[1610345808803,6.08679,1077.3,1076.4,4.00959]
[1610345809103,2.0772,1077.3,1076.4,4.00959]
[1610345810507,2.0772,1077.3,1077.2,4.00959]
[1610345810806,4.00959,1078.1,1077.2,4.00959]
[1610345811508,2.3944,1078.4,1077.2,4.00959]
[1610345811710,67.8234,1078.9,1077.2,4.00959]
[1610345812611,67.8234,1078.9,1076.2,2.2368]
[1610345812810,70.2557,1078.9,1076.2,2.2368]
[1610345813411,70.2557,1078.9,1075.6,63.2894]
[1610345813610,70.2557,1078.9,1076.3,1.43233632]
[1610345814611,70.2557,1078.9,1078.8,4.00959]
[1610345814813,70.2557,1078.9,1076.3,1.43233632]
[1610345816613,2.4323,1078.9,1078.8,4.00959]
[1610345817113,2.4323,1078.9,1076.7,58.4944]
[1610345817916,60.4521,1080.9,1076.7,58.4944]
[1610345818116,2.2883,1078.9,1076.7,58.4944]
[1610345818320,2.2883,1078.9,1076.7,97.4944]
[1610345818516,60.4521,1080.9,1076.7,97.4944]
[1610345818717,4.00959,1080.6,1078.8,4.00959]
[1610345818918,2.3781,1080.6,1078.8,4.00959]
[1610345820029,4.2083,1080.6,1078.8,4.00959]
[1610345820420,2.3781,1080.6,1078.8,4.00959]
[1610345820617,2.3781,1080.6,1080.5,4.00959]
[1610345820817,2.3781,1080.6,1079.5,1.8273]
[1610345821017,4.00959,1081.8,1079.5,1.8273]
[1610345821220,2.0,1970.0,1079.5,1.8273]
[1610345821418,1.8707,1082.2,1079.5,1.8273]
[1610345821821,1.8423,1082.5,1079.5,1.8273]
[1610345822719,5.81569,1081.0,1079.2,1.839]
[1610345822921,5.81569,1081.0,1078.8,1.8692]
[1610345823120,5.81569,1081.0,1078.2,1.8769]
[1610345823320,5.81569,1081.0,1079.6,1.42977361]
[1610345824120,1.8061,1081.0,1079.6,1.42977361]
[1610345824520,1.8061,1081.0,1078.5,1.91706089]
[1610345824720,1.8061,1081.0,1080.9,4.00959]
[1610345824919,1.8061,1081.0,1079.8,1.853]
[1610345825123,1.8061,1081.0,1078.8,1.869]
[1610345825322,1.077,1081.0,1078.7,1.9627]
[1610345825922,1.077,1081.0,1078.9,1.91658211]
[1610345825923,0.6775,1081.0,1078.9,1.91658211]
[1610345826122,1.8423,1082.5,1078.9,1.91658211]
[1610345826322,75.5612,1082.8,1078.9,3.78688211]
[1610345826520,75.5612,1082.8,1078.9,42.78688211]
[1610345826722,4.00959,1082.4,1082.1,4.00959]
[1610345827121,5.98049,1082.4,1080.5,1.8605]
[1610345827322,5.98049,1082.4,1079.8,1.8283]
[1610345827524,5.98049,1082.4,1079.5,1.8564]
[1610345828624,1.9709,1082.4,1081.6,4.00959]
[1610345828824,1.9709,1082.4,1080.2,1.8757]
[1610345829225,1.9709,1082.4,1079.8,1.8607]
[1610345829425,1.9709,1082.4,1079.6,1.9158703]
[1610345830625,1.9709,1082.4,1081.6,4.00959]
[1610345830626,4.00959,1082.2,1081.6,4.00959]
[1610345831026,4.00959,1082.2,1080.8,1.834]
[1610345831226,4.00959,1082.2,1080.5,1.8526]
[1610345831626,1.9709,1082.4,1080.5,1.8526]
[1610345832026,75.5612,1082.8,1080.5,1.8526]
[1610345832627,4.00959,1082.5,1081.8,4.00959]
[1610345833030,4.00959,1082.5,1081.8,1.8546]
[1610345833227,4.00959,1082.5,1080.9,1.8606]
[1610345834632,75.5612,1082.8,1082.1,4.00959]
[1610345834832,75.5612,1082.8,1081.2,1.8469]
[1610345834833,77.3923,1082.8,1081.2,1.8469]
[1610345835235,77.3923,1082.8,1080.9,1.8606]
[1610345835435,1.8411,1083.5,1080.9,1.8606]
[1610345835635,1.8191,1083.8,1080.9,1.8606]
[1610345836637,4.00959,1082.5,1081.9,4.00959]
[1610345836837,5.86019,1082.5,1081.9,4.00959]
[1610345837040,4.00959,1082.5,1080.9,1.8606]
[1610345837438,4.00959,1082.5,1080.5,1.8526]
[1610345837638,4.00959,1082.5,1079.3,1.5217]
[1610345838438,4.00959,1082.5,1080.3,1.91430949]
[1610345838640,4.00959,1080.4,1080.3,1.91430949]
[1610345840238,4.00959,1080.4,1079.3,1.91574337]
[1610345840639,4.00959,1079.4,1079.3,1.91574337]
[1610345841241,1.5145,1079.7,1079.3,1.91574337]
[1610345842743,4.00959,1079.4,1079.3,1.91574337]
[1610345842942,5.96509,1079.4,1079.3,1.91574337]
[1610345844343,5.96509,1079.4,1079.1,1.91562347]
[1610345844742,4.00959,1079.2,1079.1,1.91562347]
[1610345845544,4.00959,1079.2,1079.1,1.30612347]
[1610345845744,4.00959,1079.2,1077.6,77.6639]
[1610345846144,4.00959,1079.2,1076.9,70.0714]
[1610345846145,68.82379,1079.2,1076.9,70.0714]
[1610345846345,4.00959,1079.2,1075.6,2.29116046]
[1610345846745,1.9555,1079.4,1075.4,2.86395057]
[1610345846945,1.9555,1079.4,1077.0,1.77010987]
[1610345847945,1.9555,1079.4,1077.0,1.24800987]
[1610345848345,1.9555,1079.4,1075.5,1.8556]
[1610345848747,4.00959,1076.0,1075.4,4.00959]
[1610345849147,6.18129,1076.0,1075.4,4.00959]
[1610345849347,1.9555,1079.4,1075.4,4.00959]
[1610345849853,1.9555,1079.4,1075.5,1.73209575]
[1610345850049,1.9555,1079.4,1075.5,3.57979575]
[1610345850849,4.00959,1077.7,1077.0,4.00959]
[1610345851249,4.00959,1077.7,1075.8,1.8353]
[1610345851450,4.00959,1077.7,1075.7,52.9508]
[1610345852451,4.00959,1077.7,1075.7,54.8362]
[1610345852849,5.67079,1076.0,1075.8,1.73193891]
[1610345854055,5.67079,1076.0,1074.3,73.1584]
[1610345854752,4.00959,1075.3,1075.1,4.00959]
[1610345854952,6.28199,1075.3,1074.3,73.1584]
[1610345855151,1.6612,1076.0,1074.3,73.1584]
[1610345855352,1.8853,1075.3,1074.3,73.1584]
[1610345856253,1.6612,1076.0,1074.3,73.1584]
[1610345856853,1.6612,1076.0,1075.6,4.00959]
[1610345857457,1.6612,1076.0,1075.6,5.86559]
[1610345857654,55.9963,1077.1,1075.6,4.00959]
[1610345858254,55.7985,1079.3,1075.6,4.00959]
[1610345858855,4.00959,1078.3,1077.8,4.00959]
[1610345859054,6.44699,1078.3,1077.8,4.00959]
[1610345859255,2.4374,1078.3,1077.8,4.00959]
[1610345859455,1.7925,1078.3,1077.8,4.00959]
[1610345860457,1.5145,1079.7,1077.8,4.00959]
[1610345860656,1.8154,1078.6,1077.3,1.496]
[1610345860857,4.00959,1077.8,1077.3,1.496]
[1610345862762,4.00959,1077.4,1077.3,1.496]
[1610345862962,6.49169,1077.4,1077.3,1.496]
[1610345863562,6.49169,1077.4,1077.0,2.1916]
[1610345864764,4.00959,1077.1,1077.0,2.1916]
[1610345865166,4.00959,1077.1,1075.7,42.2064]
[1610345865366,4.00959,1077.1,1075.5,1.5952]
[1610345865967,5.84459,1077.1,1075.5,1.5952]
[1610345866568,7.85579,1077.1,1075.5,1.5952]
[1610345866767,4.00959,1075.6,1075.5,1.5952]
[1610345866968,6.45359,1075.6,1075.5,1.5952]
[1610345868271,6.45359,1075.6,1075.5,3.45421879]